fUST/lending_fUST_20250604
["ID","MTS","AMOUNT","RATE_DAILY","PERIOD"]
[364265143,1749052239425,-440.0,0.00016438,2]
[364265144,1749052239435,-440.0,0.00016438,2]
[364265145,1749052239445,-440.0,0.00016438,2]
[364265146,1749052239455,-440.0,0.00016438,2]
[364265147,1749052239465,-440.0,0.00016438,2]
[364265148,1749052239475,-430.0,0.00016438,2]
[364265149,1749052239485,-430.0,0.00016438,2]
[364265150,1749052239495,-430.0,0.00016438,2]
[364265151,1749052239505,-162.38974434,0.00016438,2]
[364265152,1749052239515,-476.14927129,0.00016438,2]
[364265153,1749052239525,-440.0,0.00016438,2]
[364265154,1749052239534,-440.0,0.00016438,2]
[364265155,1749052239544,-440.0,0.00016438,2]
[364265156,1749052239554,-514.31,0.00016438,2]
[364265157,1749052239564,-334.02780532,0.00016438,2]
[364265158,1749052239573,-440.0,0.00016438,2]
[364265159,1749052239583,-410.0,0.00016438,2]
[364265160,1749052239593,-350.49029278,0.00016438,2]
[364265161,1749052239608,-89.50970722,0.00016438,2]
[364265162,1749052239617,-440.0,0.00016438,2]
[364265163,1749052239626,-440.0,0.00016438,2]
[364265164,1749052239634,-440.0,0.00016438,2]
[364265165,1749052239641,-440.0,0.00016438,2]
[364265166,1749052239650,-440.0,0.00016438,2]
[364265167,1749052239658,-253.22381847,0.00016438,2]
[364265168,1749052239665,-440.0,0.00016438,2]
[364265169,1749052239673,-440.0,0.00016438,2]
[364265170,1749052239680,-372.22530489,0.00016438,2]
[364265171,1749052239687,-172.65804215,0.00016438,2]
[364265172,1749052239698,-548.44195785,0.00016438,2]
[364265173,1749052239708,-440.0,0.00016438,2]
[364265174,1749052239717,-454.31829554,0.00016438,2]
[364265175,1749052239727,-440.0,0.00016438,2]
[364265176,1749052239737,-430.0,0.00016438,2]
[364265177,1749052239746,-440.0,0.00016438,2]
[364265178,1749052239755,-440.0,0.00016438,2]
[364265179,1749052239764,-430.0,0.00016438,2]
[364265180,1749052239774,-440.0,0.00016438,2]
[364265181,1749052239783,-440.0,0.00016438,2]
[364265182,1749052239792,-440.0,0.00016438,2]
[364265183,1749052239802,-486.63,0.00016438,2]
[364265184,1749052239811,-440.0,0.00016438,2]
[364265185,1749052239820,-1101.35,0.00016438,2]
[364265186,1749052239830,-430.0,0.00016438,2]
[364265187,1749052239839,-430.0,0.00016438,2]
[364265188,1749052239851,-440.0,0.00016438,2]
[364265189,1749052239861,-440.0,0.00016438,2]
[364265190,1749052239870,-227.69612072,0.00016438,2]
[364265191,1749052239880,-440.0,0.00016438,2]
[364265192,1749052239889,-440.0,0.00016438,2]
[364265193,1749052239899,-440.0,0.00016438,2]
[364265194,1749052239909,-440.0,0.00016438,2]
[364265195,1749052239918,-430.0,0.00016438,2]
[364265196,1749052239928,-440.0,0.00016438,2]
[364265197,1749052239938,-440.0,0.00016438,2]
[364265198,1749052239947,-440.0,0.00016438,2]
[364265199,1749052239956,-440.0,0.00016438,2]
[364265201,1749052239965,-430.0,0.00016438,2]
[364265203,1749052239975,-440.0,0.00016438,2]
[364265205,1749052239984,-497.57,0.00016438,2]
[364265206,1749052239993,-430.0,0.00016438,2]
[364265207,1749052240003,-430.0,0.00016438,2]
[364265208,1749052240012,-440.0,0.00016438,2]
[364265209,1749052240021,-440.0,0.00016438,2]
[364265210,1749052240030,-440.0,0.00016438,2]
[364265211,1749052240039,-430.0,0.00016438,2]
[364265212,1749052240048,-440.0,0.00016438,2]
[364265213,1749052240057,-430.0,0.00016438,2]
[364265214,1749052240067,-262.09853649,0.00016438,2]
[364265215,1749052240076,-440.0,0.00016438,2]
[364265216,1749052240086,-371.14681798,0.00016712,2]
[364265217,1749052240097,-440.0,0.00016712,2]
[364265218,1749052240106,-440.0,0.00016712,2]
[364265219,1749052240115,-440.0,0.00016712,2]
[364265220,1749052240124,-440.0,0.00016712,2]
[364265221,1749052240134,-440.0,0.00016712,2]
[364265222,1749052240144,-440.0,0.00016712,2]
[364265223,1749052240155,-440.0,0.00016712,2]
[364265224,1749052240165,-370.0,0.00016712,2]
[364265225,1749052240174,-440.0,0.00016712,2]
[364265226,1749052240185,-440.0,0.00016712,2]
[364265227,1749052240194,-390.0,0.00016712,2]
[364265228,1749052240204,-440.0,0.00016712,2]
[364265229,1749052240214,-504.59,0.00016712,2]
[364265230,1749052240223,-440.0,0.00016712,2]
[364265231,1749052240233,-430.0,0.00016712,2]
[364265232,1749052240243,-440.0,0.00016712,2]
[364265233,1749052240253,-440.0,0.00016712,2]
[364265234,1749052240262,-440.0,0.00016712,2]
[364265235,1749052240272,-440.0,0.00016712,2]
[364265237,1749052240282,-440.0,0.00016712,2]
[364265239,1749052240292,-440.0,0.00016712,2]
[364265241,1749052240301,-440.0,0.00016712,2]
[364265242,1749052240312,-256.06,0.00016712,2]
[364265243,1749052240324,-440.0,0.00016712,2]
[364265244,1749052240333,-509.95,0.00016712,2]
[364265245,1749052240343,-440.0,0.00016712,2]
[364265246,1749052240357,-721.1,0.00016712,2]
[364265247,1749052240367,-440.0,0.00016712,2]
[364265248,1749052240377,-440.0,0.00016712,2]
[364265249,1749052240387,-440.0,0.00016712,2]
[364265250,1749052240398,-446.85005441,0.00016712,2]
[364265251,1749052240409,-430.0,0.00016712,2]
[364265253,1749052240419,-440.0,0.00016712,2]
[364265255,1749052240428,-440.0,0.00016712,2]
[364265257,1749052240437,-440.0,0.00016712,2]
[364265259,1749052240447,-1101.35,0.00016712,2]
[364265261,1749052240456,-440.0,0.00016712,2]
[364265263,1749052240466,-440.0,0.00016712,2]
[364265265,1749052240477,-440.0,0.00016712,2]
[364265267,1749052240486,-440.0,0.00016712,2]
[364265269,1749052240495,-440.0,0.00016712,2]
[364265271,1749052240505,-440.0,0.00016712,2]
[364265273,1749052240515,-440.0,0.00016712,2]
[364265275,1749052240524,-440.0,0.00016712,2]
[364265277,1749052240534,-440.0,0.00016712,2]
[364265279,1749052240544,-440.0,0.00016712,2]
[364265281,1749052240554,-440.0,0.00016712,2]
[364265283,1749052240564,-440.0,0.00016712,2]
[364265285,1749052240573,-440.0,0.00016712,2]
[364265287,1749052240583,-440.0,0.00016712,2]
[364265289,1749052240592,-440.0,0.00016986,2]
[364265291,1749052240604,-440.0,0.00016986,2]
[364265293,1749052240613,-440.0,0.00016986,2]
[364265295,1749052240623,-440.0,0.00016986,2]
[364265297,1749052240632,-440.0,0.00016986,2]
[364265299,1749052240642,-440.0,0.00016986,2]
[364265301,1749052240651,-440.0,0.00016986,2]
[364265303,1749052240660,-440.0,0.00016986,2]
[364265305,1749052240670,-440.0,0.00016986,2]
[364265307,1749052240679,-440.0,0.00016986,2]
[364265309,1749052240689,-440.0,0.00016986,2]
[364265311,1749052240698,-528.9266666,0.00016986,2]
[364265313,1749052240707,-440.0,0.00016986,2]
[364265315,1749052240717,-440.0,0.00016986,2]
[364265317,1749052240726,-440.0,0.00016986,2]
[364265319,1749052240735,-440.0,0.00016986,2]
[364265321,1749052240744,-440.0,0.00016986,2]
[364265323,1749052240754,-350.03076927,0.00016986,2]
[364265325,1749052240763,-208.98252734,0.00016986,2]
[364265327,1749052240773,-440.0,0.00016986,2]
[364265329,1749052240784,-721.1,0.00016986,2]
[364265331,1749052240793,-440.0,0.00016986,2]
[364265333,1749052240803,-440.0,0.00016986,2]
[364265335,1749052240812,-494.54774497,0.00016986,2]
[364265337,1749052240821,-440.0,0.00016986,2]
[364265339,1749052240830,-440.0,0.00016986,2]
[364265341,1749052240840,-440.0,0.00016986,2]
[364265343,1749052240850,-1101.35,0.00016986,2]
[364265345,1749052240859,-440.0,0.00016986,2]
[364265347,1749052240868,-440.0,0.00016986,2]
[364265349,1749052240878,-440.0,0.00016986,2]
[364265351,1749052240887,-440.0,0.00016986,2]
[364265353,1749052240896,-440.0,0.00016986,2]
[364265355,1749052240905,-440.0,0.00016986,2]
[364265357,1749052240914,-440.0,0.00016986,2]
[364265359,1749052240923,-440.0,0.00016986,2]
[364265361,1749052240933,-440.0,0.00016986,2]
[364265364,1749052240942,-370.0,0.00016986,2]
[364265365,1749052240951,-440.0,0.00016986,2]
[364265367,1749052240961,-440.0,0.00016986,2]
[364265369,1749052240970,-440.0,0.00016986,2]
[364265371,1749052240980,-440.0,0.00016986,2]
[364265373,1749052240989,-440.0,0.0001726,2]
[364265375,1749052240998,-440.0,0.0001726,2]
[364265377,1749052241008,-440.0,0.0001726,2]
[364265379,1749052241017,-440.0,0.0001726,2]
[364265382,1749052241027,-440.0,0.0001726,2]
[364265383,1749052241036,-440.0,0.0001726,2]
[364265386,1749052241046,-440.0,0.0001726,2]
[364265388,1749052241056,-440.0,0.0001726,2]
[364265389,1749052241066,-440.0,0.0001726,2]
[364265392,1749052241076,-440.0,0.0001726,2]
[364265393,1749052241085,-440.0,0.0001726,2]
[364265396,1749052241095,-440.0,0.0001726,2]
[364265397,1749052241104,-440.0,0.0001726,2]
[364265399,1749052241113,-721.1,0.0001726,2]
[364265401,1749052241123,-440.0,0.0001726,2]
[364265403,1749052241133,-173.50911429,0.0001726,2]
[364265405,1749052241142,-440.0,0.0001726,2]
[364265407,1749052241152,-440.0,0.0001726,2]
[364265409,1749052241161,-440.0,0.0001726,2]
[364265411,1749052241170,-1101.35,0.0001726,2]
[364265413,1749052241180,-440.0,0.0001726,2]
[364265415,1749052241190,-440.0,0.0001726,2]
[364265417,1749052241199,-440.0,0.0001726,2]
[364265420,1749052241210,-440.0,0.0001726,2]
[364265422,1749052241220,-440.0,0.0001726,2]
[364265424,1749052241230,-440.0,0.0001726,2]
[364265426,1749052241241,-374.03,0.0001726,2]
[364265428,1749052241251,-440.0,0.0001726,2]
[364265430,1749052241260,-486.1450195,0.0001726,2]
[364265432,1749052241269,-440.0,0.0001726,2]
[364265434,1749052241280,-440.0,0.0001726,2]
[364265436,1749052241289,-440.0,0.0001726,2]
[364265438,1749052241299,-440.0,0.0001726,2]
[364265440,1749052241309,-638.62684712,0.00017405,2]
[364265442,1749052241322,-440.0,0.00017534,2]
[364265444,1749052241331,-538.80675126,0.00017534,2]
[364265446,1749052241340,-440.0,0.00017534,2]
[364265447,1749052241351,-440.0,0.00017534,2]
[364265450,1749052241361,-440.0,0.00017534,2]
[364265451,1749052241370,-440.0,0.00017534,2]
[364265453,1749052241381,-184.27,0.00017534,2]
[364265455,1749052241392,-440.0,0.00017534,2]
[364265458,1749052241404,-440.0,0.00017534,2]
[364265459,1749052241414,-440.0,0.00017534,2]
[364265462,1749052241423,-440.0,0.00017534,2]
[364265464,1749052241434,-440.0,0.00017534,2]
[364265465,1749052241447,-721.1,0.00017534,2]
[364265468,1749052241456,-440.0,0.00017534,2]
[364265470,1749052241466,-440.0,0.00017534,2]
[364265471,1749052241476,-440.0,0.00017534,2]
[364265473,1749052241485,-259.42,0.00017534,2]
[364265475,1749052241495,-1101.35,0.00017534,2]
[364265477,1749052241504,-440.0,0.00017534,2]
[364265480,1749052241514,-440.0,0.00017534,2]
[364265481,1749052241523,-440.0,0.00017534,2]
[364265483,1749052241533,-440.0,0.00017534,2]
[364265485,1749052241543,-440.0,0.00017534,2]
[364265487,1749052241552,-440.0,0.00017534,2]
[364265501,1749052241670,-440.0,0.00017534,2]
[364265503,1749052241680,-440.0,0.00017534,2]
[364265505,1749052241690,-440.0,0.00017534,2]
[364265507,1749052241699,-440.0,0.00017534,2]
[364265509,1749052241709,-440.0,0.00017534,2]
[364265511,1749052241718,-236.62709331,0.00017807,2]
[364265513,1749052241727,-440.0,0.00017808,2]
[364265515,1749052241736,-440.0,0.00017808,2]
[364265517,1749052241746,-440.0,0.00017808,2]
[364265519,1749052241755,-440.0,0.00017808,2]
[364265521,1749052241765,-440.0,0.00017808,2]
[364265523,1749052241774,-440.0,0.00017808,2]
[364265525,1749052241784,-440.0,0.00017808,2]
[364265527,1749052241793,-440.0,0.00017808,2]
[364265529,1749052241802,-440.0,0.00017808,2]
[364265531,1749052241811,-721.1,0.00017808,2]
[364265533,1749052241820,-440.0,0.00017808,2]
[364265535,1749052241830,-380.0,0.00017808,2]
[364265537,1749052241839,-436.14791915,0.00017808,2]
[364265539,1749052241850,-1101.35,0.00017808,2]
[364265541,1749052241859,-440.0,0.00017808,2]
[364265543,1749052241868,-440.0,0.00017808,2]
[364265545,1749052241877,-440.0,0.00017808,2]
[364265547,1749052241887,-440.0,0.00017808,2]
[364265549,1749052241896,-440.0,0.00017808,2]
[364265551,1749052241906,-581.22,0.00017808,2]
[364265553,1749052241915,-476.9151188,0.00017808,2]
[364265555,1749052241924,-440.0,0.00017808,2]
[364265557,1749052241934,-440.0,0.00017808,2]
[364265559,1749052241943,-497.02157022,0.00017808,2]
[364265561,1749052241952,-440.0,0.00017808,2]
[364265563,1749052241961,-424.26091757,0.000179,2]
[364265565,1749052241971,-420.0,0.00017963,2]
[364265567,1749052241980,-440.0,0.00018082,2]
[364265569,1749052241990,-440.0,0.00018082,2]
[364265571,1749052241999,-440.0,0.00018082,2]
[364265573,1749052242008,-440.0,0.00018082,2]
[364265575,1749052242018,-440.0,0.00018082,2]
[364265577,1749052242027,-360.0,0.00018082,2]
[364265579,1749052242036,-380.0,0.00018082,2]
[364265581,1749052242046,-440.0,0.00018082,2]
[364265583,1749052242055,-440.0,0.00018082,2]
[364265585,1749052242065,-721.1,0.00018082,2]
[364265587,1749052242074,-393.84,0.00018082,2]
[364265589,1749052242083,-1101.35,0.00018082,2]
[364265591,1749052242092,-380.0,0.00018082,2]
[364265592,1749052242102,-506.38,0.00018082,2]
[364265594,1749052242112,-440.0,0.00018082,2]
[364265597,1749052242121,-440.0,0.00018082,2]
[364265599,1749052242131,-380.0,0.00018082,2]
[364265600,1749052242140,-487.05992226,0.00018082,2]
[364265602,1749052242150,-380.0,0.00018082,2]
[364265604,1749052242160,-342.01,0.00018082,2]
[364265606,1749052242170,-424.2609175,0.00018141,2]
[364265608,1749052242179,-440.0,0.00018356,2]
[364265610,1749052242189,-410.0,0.00018356,2]
[364265612,1749052242198,-440.0,0.00018356,2]
[364265614,1749052242208,-440.0,0.00018356,2]
[364265617,1749052242222,-440.0,0.00018356,2]
[364265619,1749052242232,-440.0,0.00018356,2]
[364265621,1749052242241,-440.0,0.00018356,2]
[364265623,1749052242251,-721.1,0.00018356,2]
[364265625,1749052242261,-1101.35,0.00018356,2]
[364265627,1749052242273,-440.0,0.00018356,2]
[364265629,1749052242283,-440.0,0.00018356,2]
[364265631,1749052242292,-424.2609175,0.00018383,2]
[364265633,1749052242302,-424.2609175,0.00018624,2]
[364265635,1749052242317,-440.0,0.0001863,2]
[364265637,1749052242327,-550.86,0.0001863,2]
[364265639,1749052242336,-440.0,0.0001863,2]
[364265641,1749052242347,-440.0,0.0001863,2]
[364265643,1749052242362,-440.0,0.0001863,2]
[364265645,1749052242372,-440.0,0.0001863,2]
[364265647,1749052242382,-721.1,0.0001863,2]
[364265649,1749052242392,-1101.35,0.0001863,2]
[364265651,1749052242401,-440.0,0.0001863,2]
[364265653,1749052242410,-440.0,0.0001863,2]
[364265654,1749052242419,-160.0,0.00018862,2]
[364265655,1749052242429,-160.0,0.00018862,2]
[364265656,1749052242439,-160.0,0.00018862,2]
[364265657,1749052242448,-975.95010119,0.00018863,2]
[364265658,1749052242458,-229.45591648,0.00018864,2]
[364265659,1749052242468,-842.5625,0.00018864,2]
[364265660,1749052242478,-424.2609175,0.00018866,2]
[364265661,1749052242488,-160.0,0.00018868,2]
[364265662,1749052242498,-212.90465545,0.00018868,2]
[364265663,1749052242507,-423.69433488,0.00018869,2]
[364265664,1749052242517,-440.0,0.00018904,2]
[364265665,1749052242526,-440.0,0.00018904,2]
[364265666,1749052242536,-440.0,0.00018904,2]
[364265667,1749052242545,-535.12,0.00018904,2]
[364265668,1749052242555,-440.0,0.00018904,2]
[364265669,1749052242564,-721.1,0.00018904,2]
[364265670,1749052242574,-1101.35,0.00018904,2]
[364265671,1749052242583,-440.0,0.00018904,2]
[364265672,1749052242592,-440.0,0.00018904,2]
[364265673,1749052242603,-424.2609175,0.00019107,2]
[364265674,1749052242613,-440.0,0.00019178,2]
[364265675,1749052242623,-440.0,0.00019178,2]
[364265676,1749052242632,-440.0,0.00019178,2]
[364265677,1749052242641,-440.0,0.00019178,2]
[364265678,1749052242650,-721.1,0.00019178,2]
[364265679,1749052242660,-1101.35,0.00019178,2]
[364265680,1749052242670,-440.0,0.00019178,2]
[364265681,1749052242678,-172.76327,0.00019178,2]
[364265682,1749052242687,-424.2609175,0.00019348,2]
[364265683,1749052242696,-440.0,0.00019452,2]
[364265684,1749052242706,-215.97687301,0.00019452,2]
[364265685,1749052242715,-440.0,0.00019452,2]
[364265686,1749052242724,-721.1,0.00019452,2]
[364265688,1749052242733,-1101.35,0.00019452,2]
[364265689,1749052242742,-440.0,0.00019452,2]
[364265690,1749052242751,-424.2609175,0.0001959,2]
[364265692,1749052242761,-300.0,0.00019631,2]
[364265694,1749052242770,-440.0,0.00019726,2]
[364265696,1749052242780,-440.0,0.00019726,2]
[364265698,1749052242790,-721.1,0.00019726,2]
[364265700,1749052242799,-1101.35,0.00019726,2]
[364265703,1749052242809,-440.0,0.00019726,2]
[364265705,1749052242818,-424.2609175,0.00019831,2]
[364265707,1749052242827,-233.984,0.00019845,2]
[364265709,1749052242836,-440.0,0.0002,2]
[364265712,1749052242845,-500.0,0.0002,3]
[364265714,1749052242855,-20000.0,0.0002,3]
[364265716,1749052242865,-440.0,0.0002,2]
[364265718,1749052242874,-721.1,0.0002,2]
[364265721,1749052242884,-842.5625,0.0002,3]
[364265724,1749052242893,-12672.94222187,0.0002,3]
[364265727,1749052242903,-1101.35,0.0002,2]
[364265729,1749052242913,-440.0,0.0002,2]
[364265732,1749052242922,-212.90465545,0.0002,3]
[364265735,1749052242931,-1300.0,0.00020068,2]
[364265738,1749052242941,-424.2609175,0.00020072,2]
[364265741,1749052242950,-366.97,0.00020273,2]
[364265743,1749052242960,-440.0,0.00020273,2]
[364265746,1749052242970,-721.1,0.00020273,2]
[364265748,1749052242981,-1101.35,0.00020273,2]
[364265750,1749052242990,-440.0,0.00020273,2]
[364265752,1749052243000,-166.0,0.00020274,2]
[364265756,1749052243009,-424.2609175,0.00020314,3]
[364265758,1749052243019,-440.0,0.00020547,2]
[364265760,1749052243029,-721.1,0.00020547,2]
[364265762,1749052243038,-1101.35,0.00020547,2]
[364265764,1749052243048,-440.0,0.00020547,2]
[364265766,1749052243057,-424.2609175,0.00020555,3]
[364265769,1749052243066,-622.02,0.000206,2]
[364265771,1749052243076,-424.2609175,0.00020797,4]
[364265774,1749052243086,-3126.8,0.00020821,2]
[364265777,1749052243096,-3126.8,0.00020821,2]
[364265780,1749052243106,-3126.8,0.00020821,2]
[364265782,1749052243117,-3126.8,0.00020821,2]
[364265784,1749052243127,-440.0,0.00020821,2]
[364265786,1749052243137,-721.1,0.00020821,2]
[364265788,1749052243150,-440.0,0.00020821,2]
[364265790,1749052243160,-1430.82,0.000209,2]
[364265792,1749052243169,-1000.0,0.00021,21]
[364265794,1749052243179,-424.2609175,0.00021038,4]
[364265796,1749052243188,-426.73,0.00021095,2]
[364265798,1749052243198,-721.1,0.00021095,2]
[364265800,1749052243207,-440.0,0.00021095,2]
[364265802,1749052243217,-1300.0,0.00021164,2]
[364265804,1749052243227,-250.0,0.00021261,2]
[364265807,1749052243237,-424.2609175,0.00021279,5]
[364265809,1749052243246,-721.1,0.00021369,2]
[364265811,1749052243256,-440.0,0.00021369,2]
[364265813,1749052243265,-424.2609175,0.00021521,5]
[364265815,1749052243275,-721.1,0.00021643,2]
[364265817,1749052243286,-170.22810196,0.00021643,2]
[364265819,1749052243298,-500.0,0.00021675,2]
[364265821,1749052243314,-500.0,0.00021675,2]
[364265823,1749052243334,-600.0,0.00021675,2]
[364265825,1749052243344,-500.0,0.00021675,2]
[364265827,1749052243354,-424.2609175,0.00021762,5]
[364265829,1749052243363,-501.06523105,0.00021813,2]
[364265831,1749052243374,-721.1,0.00021917,2]
[364265833,1749052243383,-500.0,0.00021917,2]
[364265834,1749052243394,-79831.5,0.00022,7]
[364265835,1749052243404,-1000.0,0.00022,22]
[364265836,1749052243414,-842.5625,0.00022,7]
[364265837,1749052243424,-12672.94222187,0.00022,7]
[364265838,1749052243434,-212.90465545,0.00022,7]
[364265840,1749052243443,-424.2609175,0.00022003,6]
[364265842,1749052243453,-546.72605437,0.00022114,2]
[364265843,1749052243463,-721.1,0.00022191,2]
[364265844,1749052243473,-1430.82,0.000222,7]
[364265846,1749052243482,-500.0,0.00022223,2]
[364265848,1749052243491,-1000.0,0.00022223,2]
[364265850,1749052243501,-1200.0,0.00022223,2]
[364265852,1749052243511,-1000.0,0.00022223,2]
[364265854,1749052243520,-424.2609175,0.00022245,6]
[364265856,1749052243529,-185.15931013,0.00022248,2]
[364265857,1749052243539,-500.0,0.00022248,2]
[364265859,1749052243549,-500.0,0.00022248,2]
[364265861,1749052243559,-200.85488272,0.00022248,2]
[364265863,1749052243568,-500.0,0.00022248,2]
[364265865,1749052243578,-151.0,0.00022248,2]
[364265867,1749052243587,-151.0,0.00022248,2]
[364265869,1749052243597,-1300.0,0.0002226,2]
[364265871,1749052243610,-12500.0,0.00022273,2]
[364265873,1749052243619,-500.0,0.00022275,2]
[364265875,1749052243629,-500.0,0.00022275,2]
[364265877,1749052243638,-500.0,0.00022275,2]
[364265879,1749052243648,-151.0,0.00022275,2]
[364265881,1749052243658,-12500.0,0.00022281,2]
[364265883,1749052243667,-12500.0,0.0002229,2]
[364265885,1749052243677,-12500.0,0.00022299,2]
[364265887,1749052243687,-500.0,0.00022303,2]
[364265889,1749052243697,-500.0,0.00022303,2]
[364265891,1749052243706,-500.0,0.00022303,2]
[364265892,1749052243716,-205.60639345,0.00022303,2]
[364265894,1749052243725,-500.0,0.0002233,2]
[364265896,1749052243735,-500.0,0.0002233,2]
[364265898,1749052243744,-500.0,0.0002233,2]
[364265900,1749052243754,-501.15096168,0.00022358,2]
[364265902,1749052243764,-500.0,0.00022358,2]
[364265904,1749052243774,-501.59226018,0.00022358,2]
[364265906,1749052243784,-721.1,0.00022465,2]
[364265908,1749052243794,-500.0,0.00022465,2]
[364265910,1749052243803,-424.2609175,0.00022486,7]
[364265912,1749052243813,-158.575084,0.00022575,2]
[364265914,1749052243822,-176.6037853,0.00022575,2]
[364265916,1749052243832,-572.7197194,0.00022575,2]
[364265918,1749052243841,-153.0,0.00022575,2]
[364265920,1749052243852,-153.0,0.00022575,2]
[364265922,1749052243863,-176.6037853,0.00022575,2]
[364265924,1749052243873,-158.575084,0.00022575,2]
[364265926,1749052243882,-572.7197194,0.00022575,2]
[364265928,1749052243891,-172.76327,0.00022603,2]
[364265930,1749052243900,-424.2609175,0.00022728,7]
[364265932,1749052243910,-721.16,0.00022739,2]
[364265934,1749052243919,-1500.0,0.00022771,2]
[364265936,1749052243928,-1800.0,0.00022771,2]
[364265938,1749052243938,-329.57155879,0.00022771,2]
[364265940,1749052243947,-500.0,0.00022816,2]
[364265941,1749052243957,-207.4,0.00022816,2]
[364265943,1749052243966,-500.0,0.00022816,2]
[364265945,1749052243976,-500.0,0.00022816,2]
[364265947,1749052243986,-500.0,0.00022816,2]
[364265949,1749052243995,-500.0,0.00022816,2]
[364265951,1749052244005,-500.0,0.00022816,2]
[364265953,1749052244015,-5000.0,0.00022816,2]
[364265955,1749052244024,-500.0,0.00022816,2]
[364265957,1749052244034,-500.0,0.00022816,2]
[364265959,1749052244043,-500.0,0.00022816,2]
[364265961,1749052244053,-500.0,0.00022816,2]
[364265963,1749052244062,-500.0,0.00022816,2]
[364265965,1749052244071,-500.0,0.00022816,2]
[364265967,1749052244081,-500.0,0.00022816,2]
[364265969,1749052244090,-500.0,0.00022816,2]
[364265971,1749052244099,-500.0,0.00022816,2]
[364265973,1749052244110,-1645.02615226,0.000229,2]
[364265975,1749052244120,-424.2609175,0.00022969,8]
[364265977,1749052244130,-1000.0,0.00023,23]
[364265979,1749052244140,-424.2609175,0.0002321,8]
[364265981,1749052244149,-2000.0,0.00023319,2]
[364265983,1749052244159,-1300.0,0.00023356,2]
[364265985,1749052244168,-5000.0,0.00023364,2]
[364265987,1749052244178,-962.0,0.00023366,2]
[364265989,1749052244188,-709.0,0.00023366,2]
[364265991,1749052244198,-2229.0,0.00023366,2]
[364265993,1749052244207,-247.364,0.00023366,2]
[364265995,1749052244217,-2200.0,0.00023444,2]
[364265997,1749052244227,-424.2609175,0.00023452,9]
[364265999,1749052244236,-190.21592631,0.00023507,2]
[364266001,1749052244245,-190.21592631,0.00023616,2]
[364266003,1749052244255,-424.2609175,0.00023693,9]
[364266005,1749052244264,-1430.82,0.000237,7]
[364266007,1749052244274,-742.677476,0.00023734,3]
[364266009,1749052244284,-190.21592631,0.00023753,2]
[364266011,1749052244295,-200.0,0.00023799,2]
[364266013,1749052244305,-200.0,0.00023799,2]
[364266015,1749052244317,-206.53827738,0.00023799,2]
[364266017,1749052244327,-151.0,0.000238,7]
[364266019,1749052244336,-200.0,0.00023834,2]
[364266021,1749052244347,-200.0,0.00023834,2]
[364266023,1749052244357,-200.0,0.00023835,2]
[364266025,1749052244367,-190.21592631,0.00023863,2]
[364266027,1749052244377,-480.129086,0.00023867,2]
[364266029,1749052244387,-200.0,0.00023899,2]